bitfinex/quotes_SOLUSD_20230110
["timestamp","ask_amount","ask_price","bid_price","bid_amount"]
[1673332661127,65.68061681,16.071,16.052,20.0]
[1673332661321,46.68,16.071,16.053,60.74]
[1673332661522,65.67061681,16.075,16.055,20.0]
[1673332661734,22.21,16.08,16.057,20.0]
[1673332661735,46.67,16.077,16.057,20.0]
[1673332661954,85.66061681,16.078,16.058,63.72]
[1673332662159,65.66061681,16.078,16.059,20.0]
[1673332662493,19.00061681,16.078,16.061,20.0]
[1673332662689,19.00061681,16.078,16.062,17.0]
[1673332662901,65.66061681,16.078,16.062,17.0]
[1673332664043,19.00061681,16.078,16.063,20.0]
[1673332664253,46.67,16.077,16.063,20.0]
[1673332664675,19.00061681,16.078,16.063,20.0]
[1673332665327,71.532492,16.084,16.065,20.0]
[1673332665518,71.532492,16.084,16.066,46.7]
[1673332665519,24.882492,16.084,16.066,46.7]
[1673332665731,46.65,16.083,16.068,20.0]
[1673332665944,46.64,16.085,16.068,20.0]
[1673332666257,24.88489,16.084,16.068,20.0]
[1673332666571,46.65,16.083,16.068,20.0]
[1673332667425,65.65061681,16.083,16.065,116.3007]
[1673332667639,40.0,16.082,16.065,116.3007]
[1673332667848,46.66,16.081,16.066,20.0]
[1673332668161,65.66061681,16.081,16.066,20.0]
[1673332668368,46.66,16.081,16.066,20.0]
[1673332669106,24.88489,16.084,16.068,20.0]
[1673332669632,24.88489,16.084,16.069,46.69]
[1673332670159,24.88489,16.084,16.069,9.17620053]
[1673332670467,24.88489,16.084,16.068,20.0]
[1673332670878,24.88489,16.084,16.07,20.0]
[1673332671301,24.88489,16.084,16.07,29.17620053]
[1673332672138,24.88489,16.084,16.069,46.69]
[1673332672351,24.88489,16.084,16.07,20.0]
[1673332673102,24.88489,16.084,16.072,20.0]
[1673332673939,24.88489,16.084,16.068,9.17620053]
[1673332674134,102.65061681,16.083,16.064,114.8878]
[1673332674465,20.0,16.082,16.066,20.0]
[1673332674682,20.0,16.08,16.066,20.0]
[1673332674902,46.66,16.079,16.064,114.8878]
[1673332675288,20.0,16.078,16.064,114.8878]
[1673332678043,20.0,16.082,16.066,75.87620053]
[1673332678241,46.66,16.081,16.066,20.0]
[1673332678443,20.0,16.08,16.064,114.8878]
[1673332678653,20.0,16.08,16.064,159.0878]
[1673332678864,20.0,16.08,16.064,114.8878]
[1673332679620,20.0,16.08,16.06,41.42]
[1673332679621,20.0,16.078,16.06,41.42]
[1673332679930,20.0,16.078,16.057,114.636]
[1673332679931,82.67061681,16.077,16.057,114.636]
[1673332680124,20.0,16.076,16.057,114.636]
[1673332680335,46.67,16.075,16.058,20.0]
[1673332680757,20.0,16.076,16.058,20.0]
[1673332681085,20.0,16.076,16.06,20.0]
[1673332681300,24.51,16.07,16.041,11.09036053]
[1673332681500,2.66836304,16.055,16.027,112.92760853]
[1673332681699,2.66836304,16.055,15.993,193.88054878]
[1673332681700,2.66836304,16.052,16.028,1.02840196]
[1673332681913,46.74,16.051,16.028,1.02840196]
[1673332682130,2.66836304,16.05,16.028,1.02840196]
[1673332682344,46.75,16.049,16.028,1.02840196]
[1673332682555,39.66836304,16.048,16.028,1.02840196]
[1673332682764,46.75,16.047,16.025,108.0329]
[1673332682982,39.66836304,16.046,16.025,108.0329]
[1673332683297,148.00562129,16.046,16.025,108.0329]
[1673332684017,148.00562129,16.046,16.02,134.2745]
[1673332684018,24.64,16.04,16.02,109.6345]
[1673332684223,20.0,16.038,16.02,109.6345]
[1673332684436,63.78,16.037,16.02,109.6345]
[1673332684642,82.78061681,16.037,16.02,109.6345]
[1673332684851,39.00061681,16.036,16.02,109.6345]
[1673332685091,63.79,16.035,16.01,24.7]
[1673332685399,63.79,16.035,16.01,24.51]
[1673332685614,20.0,16.034,16.012,20.0]
[1673332685823,17.0,16.033,16.012,20.0]
[1673332686019,20.0,16.032,16.012,20.0]
[1673332686654,46.8,16.033,16.012,20.0]
[1673332686973,20.0,16.034,16.012,20.0]
[1673332687171,17.0,16.033,16.012,20.0]
[1673332687382,17.0,16.033,16.014,20.0]
[1673332687606,17.0,16.033,16.015,20.0]
[1673332687796,17.0,16.033,16.014,20.0]
[1673332688219,17.0,16.033,16.015,2.214]
[1673332689191,17.0,16.033,16.015,22.214]
[1673332689386,20.0,16.032,16.015,2.214]
[1673332689592,17.0,16.031,16.011,109.6345]
[1673332689795,17.0,16.031,16.012,20.0]
[1673332689796,46.8,16.03,16.012,20.0]
[1673332690010,46.79,16.035,16.013,8.008]
[1673332690225,20.0,16.034,16.013,8.008]
[1673332690444,46.8,16.033,16.012,30.43]
[1673332690654,20.0,16.032,16.012,20.0]
[1673332690971,46.8,16.031,16.012,20.0]
[1673332691164,20.0,16.03,16.012,20.0]
[1673332691377,20.0,16.034,16.013,11.83]
[1673332691704,20.0,16.036,16.014,17.0]
[1673332691926,46.79,16.035,16.015,13.15]
[1673332692104,46.79,16.035,16.012,14.13]
[1673332692318,46.79,16.035,16.011,109.6345]
[1673332692319,20.0,16.034,16.011,123.7645]
[1673332692644,20.0,16.032,16.011,109.6345]
[1673332692967,82.80061681,16.031,16.011,109.6345]
[1673332693182,20.0,16.03,16.011,109.6345]
[1673332693386,63.81,16.029,16.011,109.6345]
[1673332693599,63.81,16.029,16.01,24.964182]
[1673332693915,19.00061681,16.028,16.01,24.964182]
[1673332694233,83.81,16.027,16.01,24.964182]
[1673332694446,66.81,16.027,16.01,24.964182]
[1673332694625,37.0,16.026,16.01,24.964182]
[1673332694840,46.82,16.025,16.01,24.964182]
[1673332695056,20.0,16.024,16.01,24.964182]
[1673332695273,66.82,16.023,16.01,24.964182]
[1673332695480,24.5,16.02,16.01,24.964182]
[1673332695682,46.84,16.019,16.01,24.964182]
[1673332695890,20.0,16.018,16.01,24.964182]
[1673332696115,20.0,16.018,15.998,4.345]
[1673332696331,20.0,16.018,15.995,20.0]
[1673332696941,46.84,16.017,15.995,20.0]
[1673332697162,20.0,16.016,15.995,20.0]
[1673332697374,24.64,16.01,15.987,20.0]
[1673332697692,19.00061681,16.016,15.982,117.4631]
[1673332697914,17.0,16.015,15.987,20.0]
[1673332698965,24.42,16.02,16.006,20.0]
[1673332699150,20.0,16.03,16.007,20.0]
[1673332699365,143.14,16.03,16.008,20.0]
[1673332699583,69.1,16.03,16.008,20.0]
[1673332700095,69.1,16.03,16.007,20.0]
[1673332700308,66.81,16.029,16.007,20.0]
[1673332700523,24.64,16.02,16.007,20.0]
[1673332700733,46.81,16.028,16.007,20.0]
[1673332701148,66.81,16.029,16.007,20.0]
[1673332701580,66.81,16.029,16.006,40.0]
[1673332701905,63.82,16.026,16.006,20.0]
[1673332702218,20.0,16.025,16.006,40.0]
[1673332702418,17.0,16.024,16.006,20.0]
[1673332702739,24.64,16.02,16.006,20.0]
[1673332702954,24.64,16.02,16.007,20.0]
[1673332703150,46.81,16.028,16.008,17.0]
[1673332703476,143.08,16.03,16.009,20.0]
[1673332703667,44.52,16.03,16.01,17.0]
[1673332703880,44.52,16.03,16.011,21.597]
[1673332704085,98.5,16.04,16.011,21.597]
[1673332704086,46.79,16.035,16.012,20.0]
[1673332704302,66.78,16.039,16.013,19.572]
[1673332704622,66.78,16.039,16.014,20.0]
[1673332704828,20.0,16.039,16.015,23.165]
[1673332705033,20.0,16.039,16.017,20.0]
[1673332705254,20.0,16.039,16.018,29.257]
[1673332705471,20.0,16.039,16.019,17.0]
[1673332705662,20.0,16.039,16.02,10.2]
[1673332705873,46.78,16.038,16.019,11.03]
[1673332706084,20.0,16.037,16.019,11.03]
[1673332706515,20.0,16.039,16.02,17.0]
[1673332706715,20.0,16.039,16.012,128.6493]
[1673332706716,22.12,16.03,16.011,117.2265]
[1673332706920,46.81,16.029,16.011,117.2265]
[1673332707146,46.81,16.029,16.012,20.0]
[1673332707358,46.79,16.036,16.013,12.38]
[1673332707933,46.79,16.036,16.014,20.0]
[1673332708098,20.0,16.04,16.015,32.74]
[1673332708741,46.78,16.039,16.017,20.0]
[1673332708945,46.77,16.043,16.018,37.0]
[1673332709154,46.77,16.041,16.019,20.0]
[1673332709344,46.77,16.043,16.02,128.7532]
[1673332709555,46.77,16.043,16.022,20.0]
[1673332709767,46.77,16.043,16.023,20.0]
[1673332709991,46.77,16.043,16.023,37.0]
[1673332711148,46.76,16.045,16.024,20.0]
[1673332711462,46.76,16.045,16.026,20.0]
[1673332711778,46.76,16.045,16.027,37.0]
[1673332712499,46.76,16.045,16.028,20.0]
[1673332713570,46.76,16.045,16.027,37.0]
[1673332713878,20.0,16.044,16.027,37.0]
[1673332714703,20.0,16.044,16.027,20.0]
[1673332714934,20.0,16.044,16.025,20.0]
[1673332715143,20.0,16.044,16.026,17.0]
[1673332715357,20.0,16.044,16.027,20.0]
[1673332716308,46.75,16.047,16.028,17.0]
[1673332716495,66.75,16.048,16.028,17.0]
[1673332716919,46.75,16.048,16.029,20.0]
[1673332717131,20.0,16.05,16.029,20.0]
[1673332717132,46.75,16.049,16.03,17.0]
[1673332717563,46.75,16.049,16.029,116.572]
[1673332717564,20.0,16.048,16.029,116.572]
[1673332717763,46.75,16.047,16.029,116.572]
[1673332718287,20.0,16.048,16.029,116.572]
[1673332718496,46.75,16.047,16.029,116.572]
[1673332718816,46.75,16.047,16.03,37.0]
[1673332719031,20.0,16.048,16.03,37.0]
[1673332719446,20.0,16.048,16.029,116.572]
[1673332719660,63.75,16.047,16.029,116.572]
[1673332719868,20.0,16.046,16.027,125.3489]
[1673332720073,63.75,16.047,16.028,17.0]
[1673332720286,46.74,16.052,16.028,17.0]
[1673332720486,46.72,16.058,16.029,20.0]
[1673332720701,65.72061681,16.058,16.03,17.0]
[1673332720916,20.0,16.057,16.031,20.0]
[1673332721121,46.73,16.056,16.032,37.0]
[1673332721347,46.73,16.056,16.033,20.0]
[1673332721554,46.73,16.056,16.034,17.0]
[1673332721875,46.73,16.056,16.035,20.0]
[1673332722080,46.73,16.056,16.036,145.2607]
[1673332722294,46.73,16.056,16.037,20.0]
[1673332722489,46.73,16.056,16.038,20.0]
[1673332722931,20.0,16.065,16.04,20.0]
[1673332722932,46.72,16.058,16.04,20.0]
[1673332723129,46.72,16.058,16.039,17.0]
[1673332723439,20.0,16.057,16.039,17.0]
[1673332723979,20.0,16.057,16.038,20.0]
[1673332724185,17.0,16.056,16.038,20.0]
[1673332724595,20.0,16.057,16.038,20.0]
[1673332724803,46.73,16.056,16.038,20.0]
[1673332725226,20.0,16.057,16.038,20.0]
[1673332726288,63.73,16.056,16.038,20.0]
[1673332726497,20.0,16.055,16.038,20.0]
[1673332726816,20.0,16.053,16.037,20.0]
[1673332727031,17.0,16.052,16.037,20.0]
[1673332728492,17.0,16.052,16.037,40.0]
[1673332728697,17.0,16.052,16.037,20.0]
[1673332728908,37.0,16.053,16.037,20.0]
[1673332729757,37.0,16.053,16.037,40.0]
[1673332730486,37.0,16.053,16.037,20.0]
[1673332732489,37.0,16.053,16.037,40.0]
[1673332733955,20.0,16.052,16.034,43.22]
[1673332734278,85.74061681,16.052,16.03,20.0]
[1673332734471,36.00061681,16.051,16.03,113.3545]
[1673332734680,88.83,16.05,16.03,113.3545]
[1673332734902,88.83,16.05,16.031,20.0]
[1673332734903,17.0,16.049,16.031,20.0]
[1673332735115,17.0,16.049,16.03,113.3545]
[1673332735116,20.0,16.047,16.03,113.3545]
[1673332735311,63.76,16.046,16.03,113.3545]
[1673332735524,20.0,16.045,16.03,113.3545]
[1673332736579,46.76,16.046,16.029,112.7231]
[1673332736916,37.0,16.045,16.023,35.05]
[1673332737102,87.56154149,16.044,16.023,154.4089]
[1673332737438,36.00061681,16.043,16.023,119.3589]
[1673332737643,87.4014485,16.042,16.023,119.3589]
[1673332737956,1.07169469,16.039,16.013,28.78]
[1673332738175,2.3253724,16.037,16.011,115.6265]
[1673332738380,2.3253724,16.035,16.012,22.79]
[1673332738601,46.79,16.034,16.012,22.79]
[1673332738909,39.3253724,16.033,16.012,42.79]
[1673332739728,2.3253724,16.031,16.012,42.79]
[1673332740465,2.3253724,16.031,16.012,22.79]
[1673332740677,2.3253724,16.031,16.012,42.79]
[1673332740899,20.0,16.029,16.008,17.24]
[1673332741113,66.1353724,16.028,16.006,119.3589]
[1673332741436,20.0,16.027,16.006,119.3589]
[1673332741627,20.0,16.025,16.006,119.3589]
[1673332741837,63.82,16.024,16.006,119.3589]
[1673332742474,63.82,16.024,16.007,20.0]
[1673332742794,46.82,16.026,16.007,20.0]
[1673332742991,17.0,16.025,16.007,30.21]
[1673332743199,22.12,16.02,16.003,24.980933]
[1673332743413,63.84,16.019,16.003,24.980933]
[1673332743628,20.0,16.018,16.003,24.980933]
[1673332743951,20.0,16.016,16.003,24.980933]
[1673332744157,17.0,16.015,16.003,24.980933]
[1673332746772,20.0,16.018,16.003,24.980933]
[1673332746995,17.0,16.017,16.003,24.980933]
[1673332747205,20.0,16.018,16.003,24.980933]
[1673332748467,17.0,16.017,16.003,24.980933]
[1673332748666,20.0,16.018,16.003,24.980933]
[1673332749206,37.26186158,16.025,16.007,20.0]
[1673332749394,37.26186158,16.025,16.008,20.0]
[1673332749624,66.81,16.029,16.009,20.0]
[1673332749833,66.81,16.029,16.008,20.0]
[1673332750045,20.0,16.025,16.003,24.980933]
[1673332750258,22.08,16.02,16.003,24.980933]
[1673332750572,20.0,16.019,16.003,44.980933]
[1673332751100,17.0,16.018,16.003,24.980933]
[1673332751725,20.0,16.019,16.006,20.0]
[1673332751929,46.83,16.022,16.006,20.0]
[1673332752250,20.0,16.025,16.007,20.0]
[1673332752650,66.82,16.023,16.007,20.0]
[1673332753095,66.82,16.023,16.006,40.0]
[1673332753699,20.0,16.021,16.006,20.0]
[1673332753930,17.0,16.02,16.006,20.0]
[1673332754464,20.0,16.021,16.006,20.0]
[1673332754770,20.0,16.021,16.003,20.0]
[1673332754771,20.0,16.021,16.002,108.1347]
[1673332755813,17.0,16.02,16.003,20.0]
[1673332756242,17.0,16.02,16.002,108.1347]
[1673332757484,20.0,16.019,16.0,24.987177]
[1673332757699,17.0,16.018,16.0,24.987177]
[1673332757911,20.0,16.017,16.0,24.987177]
[1673332758116,17.0,16.016,16.0,24.987177]
[1673332758568,17.0,16.016,16.0,44.987177]
[1673332759710,17.0,16.016,16.001,20.0]
[1673332762102,20.0,16.017,16.001,20.0]
[1673332762321,20.0,16.019,16.001,20.0]
[1673332762662,20.0,16.019,16.006,20.0]
[1673332762845,20.0,16.022,16.006,20.0]
[1673332763051,20.0,16.034,16.006,20.0]
[1673332763372,20.0,16.03,16.008,20.0]
[1673332763793,61.12061681,16.03,16.008,20.0]
[1673332764022,20.0,16.028,16.008,20.0]
[1673332764219,46.81,16.027,16.008,20.0]
[1673332764435,20.0,16.026,16.008,20.0]
[1673332764646,17.0,16.025,16.008,20.0]
[1673332764956,20.0,16.026,16.008,20.0]
[1673332765496,46.81,16.027,16.008,20.0]
[1673332765921,20.0,16.028,16.008,20.0]
[1673332766226,17.0,16.027,16.008,20.0]
[1673332766538,24.84,16.03,16.008,20.0]
[1673332766756,24.84,16.03,16.01,20.0]
[1673332767594,85.81061681,16.029,16.01,20.0]
[1673332767908,36.00061681,16.028,16.01,20.0]
[1673332768116,46.81,16.027,16.01,20.0]
[1673332768325,20.0,16.029,16.01,20.0]
[1673332768539,24.84,16.03,16.012,20.0]
[1673332768940,24.84,16.03,16.013,0.94954973]
[1673332769149,24.84,16.03,16.012,20.0]
[1673332769355,24.84,16.03,16.013,1.06658917]
[1673332769794,24.84,16.03,16.012,20.0]
[1673332770419,24.84,16.03,16.013,0.71821367]
[1673332770621,46.8,16.032,16.013,20.0]
[1673332770827,65.78061681,16.037,16.014,1.57507365]
[1673332771043,20.0,16.036,16.014,21.57507365]
[1673332771254,46.79,16.035,16.016,20.0]
[1673332771577,39.00061681,16.036,16.017,21.57507365]
[1673332771790,20.0,16.034,16.019,1.57507365]
[1673332771999,20.0,16.034,16.018,1.57507365]
[1673332772208,20.0,16.034,16.017,134.9634]
[1673332772414,20.0,16.034,16.018,0.80164688]
[1673332772628,17.0,16.033,16.018,0.80164688]
[1673332772829,17.0,16.033,16.017,134.9634]
[1673332773672,17.0,16.033,16.019,0.70403291]
[1673332774105,17.0,16.033,16.018,20.0]
[1673332775354,66.78,16.039,16.019,17.0]
[1673332775587,24.94,16.04,16.02,4.18094366]
[1673332775919,20.0,16.043,16.022,20.0]
[1673332776234,20.0,16.041,16.023,2.39494366]
[1673332776421,46.77,16.04,16.023,2.30754754]
[1673332777063,46.76,16.044,16.023,19.30754754]
[1673332777280,20.0,16.043,16.024,20.0]
[1673332777487,46.77,16.042,16.025,2.30754754]
[1673332777899,46.76,16.045,16.025,2.30754754]
[1673332778107,20.0,16.044,16.025,2.30754754]
[1673332778320,46.77,16.043,16.025,2.30754754]
[1673332778527,20.0,16.042,16.024,20.0]
[1673332778737,46.77,16.041,16.024,20.0]
[1673332781058,46.76,16.046,16.025,22.14747297]
[1673332781272,20.0,16.053,16.027,1.79369519]
[1673332781480,66.74,16.052,16.029,1.79369519]
[1673332781692,20.0,16.051,16.029,21.79369519]
[1673332782009,46.75,16.05,16.029,21.79369519]
[1673332782223,20.0,16.049,16.03,109.7568]
[1673332782423,46.75,16.048,16.031,21.79369519]
[1673332782844,17.0,16.047,16.031,21.79369519]
[1673332783910,20.0,16.052,16.032,17.0]
[1673332784098,20.0,16.052,16.033,21.79369519]
[1673332784310,66.73,16.056,16.035,1.79369519]
[1673332784521,19.00061681,16.053,16.035,1.79369519]
[1673332784735,46.73,16.056,16.037,2.13926532]
[1673332784945,231.13,16.056,16.039,2.13926532]
[1673332785158,204.4,16.054,16.025,109.7568]
[1673332785367,24.63,16.04,16.025,109.7568]
[1673332785794,65.78061681,16.039,16.025,109.7568]
[1673332786940,46.78,16.039,16.025,109.7568]
[1673332787266,24.63,16.04,16.025,109.7568]
[1673332787474,46.77,16.04,16.025,109.7568]
[1673332788108,20.0,16.039,16.025,109.7568]
[1673332788299,17.0,16.038,16.025,109.7568]
[1673332788719,63.78,16.038,16.025,109.7568]
[1673332789044,20.0,16.037,16.025,109.7568]
[1673332789252,46.78,16.038,16.025,109.7568]
[1673332789478,36.00061681,16.037,16.025,109.7568]
[1673332789704,46.79,16.036,16.025,109.7568]
[1673332790010,56.00061681,16.035,16.02,117.8403]
[1673332790197,46.79,16.034,16.02,117.8403]
[1673332790407,17.0,16.033,16.02,117.8403]
[1673332791040,17.0,16.034,16.02,117.8403]
[1673332791562,20.0,16.033,16.02,117.8403]
[1673332791779,17.0,16.032,16.02,117.8403]
[1673332792312,20.0,16.033,16.02,117.8403]
[1673332794412,20.0,16.033,16.021,20.0]
[1673332794828,20.0,16.033,16.02,117.8403]
[1673332795033,20.0,16.033,16.021,20.0]
[1673332795245,19.00061681,16.034,16.021,20.0]
[1673332795453,17.0,16.033,16.021,20.0]
[1673332796522,17.0,16.033,16.02,117.8403]
[1673332797339,17.0,16.033,16.021,20.0]
[1673332797767,17.0,16.033,16.02,117.8403]
[1673332798305,17.0,16.033,16.021,20.0]
[1673332798942,19.00061681,16.034,16.021,20.0]
[1673332799655,46.78,16.038,16.021,20.0]
[1673332799862,36.00061681,16.036,16.021,20.0]
[1673332800289,19.00061681,16.035,16.018,108.3397]
[1673332800707,20.0,16.035,16.019,20.0]
[1673332800937,20.0,16.033,16.019,20.0]
[1673332801249,36.00061681,16.032,16.019,20.0]
[1673332802290,36.00061681,16.032,16.018,108.3397]
[1673332802930,36.00061681,16.032,16.019,20.0]
[1673332803248,36.00061681,16.032,16.018,108.3397]
[1673332803463,20.0,16.031,16.018,108.3397]
[1673332804513,36.00061681,16.032,16.019,20.0]
[1673332805037,24.79,16.03,16.011,114.2348]
[1673332805248,24.79,16.03,16.012,112.8669]
[1673332805249,63.81,16.029,16.012,112.8669]
[1673332805457,20.0,16.028,16.012,112.8669]
[1673332805779,20.0,16.026,16.011,114.2348]
[1673332805968,46.82,16.025,16.011,114.2348]
[1673332806299,20.0,16.023,16.011,114.2348]
[1673332806520,17.0,16.022,16.011,114.2348]
[1673332807243,24.71,16.02,16.007,112.8669]
[1673332807454,17.0,16.019,16.007,112.8669]
[1673332807661,36.00061681,16.019,16.007,112.8669]
[1673332807870,17.0,16.019,16.008,20.0]
[1673332808195,17.0,16.019,16.007,112.8669]
[1673332808801,17.0,16.019,16.008,20.0]
[1673332809575,17.0,16.019,16.007,112.8669]
[1673332809782,17.0,16.019,16.008,20.0]
[1673332810625,179.48,16.03,16.008,20.0]
[1673332810932,19.00061681,16.028,16.008,20.0]
[1673332811145,20.0,16.027,16.008,20.0]
[1673332811546,19.00061681,16.026,16.008,20.0]
[1673332812389,20.0,16.027,16.008,20.0]
[1673332812606,19.00061681,16.026,16.008,20.0]
[1673332814802,17.0,16.025,16.008,20.0]
[1673332815353,36.00061681,16.025,16.008,20.0]
[1673332815543,20.0,16.027,16.008,20.0]
[1673332816068,19.00061681,16.026,16.008,20.0]
[1673332816925,17.0,16.025,16.008,20.0]
[1673332817341,36.00061681,16.025,16.008,20.0]
[1673332818493,19.00061681,16.025,16.008,20.0]
[1673332818708,19.00061681,16.025,16.01,20.0]
[1673332820073,17.0,16.024,16.01,20.0]
[1673332820491,36.00061681,16.024,16.01,20.0]
[1673332822402,19.00061681,16.024,16.01,20.0]
[1673332822720,19.00061681,16.027,16.011,7.227]
[1673332822926,19.00061681,16.027,16.011,123.6646]
[1673332823135,19.00061681,16.027,16.011,116.4376]
[1673332823544,19.00061681,16.027,16.012,20.0]
[1673332824909,17.0,16.026,16.012,20.0]
[1673332825244,36.00061681,16.026,16.012,20.0]
[1673332829545,113.8318,16.036,16.012,20.0]
[1673332829546,46.79,16.034,16.013,12.11]
[1673332829754,66.78,16.039,16.014,40.0]
[1673332829966,20.0,16.037,16.016,20.0]
[1673332830167,46.79,16.036,16.017,149.5444]
[1673332830377,20.0,16.035,16.018,20.0]
[1673332830589,39.00061681,16.035,16.018,20.0]
[1673332831736,46.79,16.036,16.018,20.0]
[1673332831957,20.0,16.037,16.018,20.0]
[1673332832596,20.0,16.037,16.02,20.0]
[1673332833123,39.00061681,16.037,16.02,20.0]
[1673332833334,39.00061681,16.037,16.02,134.7787]
[1673332833528,17.0,16.036,16.02,134.7787]
[1673332833739,39.00061681,16.037,16.02,134.7787]
[1673332834268,46.78,16.038,16.02,134.7787]
[1673332834593,46.78,16.038,16.02,150.3287]
[1673332834814,85.78061681,16.039,16.02,150.3287]
[1673332835121,19.00061681,16.038,16.02,150.3287]
[1673332835430,66.78,16.039,16.02,150.3287]
[1673332835833,17.0,16.038,16.02,150.3287]
[1673332837429,73.16,16.04,16.022,20.0]
[1673332837621,26.39,16.04,16.022,25.178]
[1673332838897,20.0,16.038,16.022,25.178]
[1673332839223,20.0,16.038,16.022,5.178]
[1673332839529,82.78061681,16.037,16.021,20.0]
[1673332840566,36.00061681,16.037,16.021,32.53]
[1673332840777,36.00061681,16.037,16.021,20.0]
[1673332841311,20.0,16.039,16.021,20.0]
[1673332841842,39.00061681,16.039,16.021,20.0]
[1673332842889,73.49,16.04,16.021,20.0]
[1673332843083,37.0,16.039,16.021,20.0]
[1673332844155,17.0,16.039,16.021,20.0]
[1673332844345,73.49,16.04,16.023,20.0]
[1673332844554,26.72,16.04,16.023,20.0]
[1673332844776,73.49,16.04,16.023,20.0]
[1673332846476,26.72,16.04,16.023,20.0]
[1673332846781,66.77,16.043,16.024,17.0]
[1673332846991,20.0,16.042,16.025,20.0]
[1673332847314,46.76,16.044,16.027,20.0]
[1673332847510,46.76,16.045,16.027,20.0]
[1673332847830,20.0,16.049,16.029,20.0]
[1673332848030,20.0,16.049,16.032,1.25389023]
[1673332848246,20.0,16.047,16.029,160.572]
[1673332848562,20.0,16.045,16.029,132.012]
[1673332848783,20.0,16.045,16.03,8.65827996]
[1673332849306,46.76,16.046,16.03,8.65827996]
[1673332849616,20.0,16.045,16.03,8.65827996]
[1673332851177,46.76,16.046,16.03,8.65827996]
[1673332851408,17.0,16.045,16.03,8.65827996]
[1673332852022,63.76,16.046,16.03,8.65827996]
[1673332853288,17.0,16.046,16.03,8.65827996]
[1673332853509,46.75,16.048,16.031,37.0]
[1673332853723,46.75,16.049,16.031,37.0]
[1673332853929,46.75,16.049,16.032,8.65827996]
[1673332854142,26.43,16.05,16.033,17.0]
[1673332854374,26.43,16.05,16.034,20.0]
[1673332854670,26.43,16.05,16.034,28.65827996]
[1673332855601,26.43,16.05,16.034,20.0]
[1673332855817,26.43,16.05,16.035,8.65827996]
[1673332856028,26.43,16.05,16.035,25.65827996]
[1673332856540,73.18,16.05,16.035,25.65827996]
[1673332858152,26.43,16.05,16.035,25.65827996]
[1673332858347,26.43,16.05,16.036,28.65827996]
[1673332858869,46.74,16.052,16.037,25.65827996]